Cogmind - Beta 16.1 @@@ ROGUE MODE // 2026.04.05 @ 13:48:44 Player: Benkyo Result: Destroyed by RA-V9P(R) with Subdweller Shrapnel Launcher Performance ------------- Evolutions (0) 0 Regions Visited (2) 400 Robots Destroyed (28) 140 Value Destroyed (593) 593 Prototype IDs (2) 40 Alien Tech Used (0) 0 Bonus (0) 0 TOTAL SCORE: 1173 Bonus ------- None Cogmind --------- Core Integrity 0/250 Matter 300/300 Energy 231/250 System Corruption 0% Temperature Cool (0) Movement Treading (160) Location -10/Subcaves Parts ------- > --- POWER (1) -------- Ion Engine > --- PROPULSION (2) --- Light Treads Light Treads > --- UTILITY (2) ------ Large Storage Unit Seismic Detector > --- WEAPON (2) ------- Medium Laser Subdweller Laser > --- INVENTORY (15) --- Light Ion Engine Light Treads Compact Wheel Huge Storage Unit Large Matter Pod (150) Improved Terrain Scanner Medium Laser Medium Laser Subdweller Beam Cannon Light Assault Rifle Light Assault Rifle Light Assault Rifle Light Cannon Battle Cannon Mining Laser Peak State ------------ > --- POWER ------------ Ion Engine > --- PROPULSION ------- Light Treads Light Treads > --- UTILITY ---------- Large Storage Unit Seismic Detector > --- WEAPON ----------- Medium Laser Subdweller Laser > --- INVENTORY -------- Light Ion Engine Light Treads Light Treads Compact Wheel Huge Storage Unit Large Matter Pod Improved Terrain Scanner Medium Laser Medium Laser Light Assault Rifle Light Assault Rifle Light Assault Rifle Light Cannon Mining Laser [Rating: 9] Favorites ----------- Power Ion Engine Engine Ion Engine Propulsion Light Treads Treads Light Treads Utility Seismic Detector Device Seismic Detector Storage Large Storage Unit Weapon Medium Laser Energy Gun Medium Laser Ballistic Gun Light Assault Rifle Build | -11 -10 -10 ------- Run | Yrd Mat Sub Slots Evolved . | . . . Power . | . . . Propulsion . | . . . Utility . | . . . Weapon . | . . . Parts Attached 12 | 7 2 3 Power 1 | 1 . . Engine 1 | 1 . . Core . | . . . Reactor . | . . . Propulsion 3 | 2 . 1 Treads 3 | 2 . 1 Leg . | . . . Wheel . | . . . Hover . | . . . Flight . | . . . Utility 3 | 2 1 . Device 1 | 1 . . Storage 2 | 1 1 . Processor . | . . . Hackware . | . . . Protection . | . . . Artifact . | . . . Weapon 5 | 2 1 2 Energy Gun 3 | 1 . 2 Energy Cannon . | . . . Ballistic Gun 2 | 1 1 . Ballistic Cannon . | . . . Launcher . | . . . Special Weapon . | . . . Impact Weapon . | . . . Slashing Weapon . | . . . Piercing Weapon . | . . . Special Melee Weapon . | . . . Unidentified Prototypes . | . . . Parts Lost 1 | . . 1 Power . | . . . Propulsion 1 | . . 1 Utility . | . . . Weapon . | . . . Highest Loss Streak 1 | . . 1 To Critical Strikes . | . . . Average Backups 10 | 5 9 14 Power . | . 1 1 Propulsion 2 | 2 2 2 Utility 2 | . 2 3 Weapon 5 | 1 3 7 Tool/Special . | . . . Unused Backups 16 | . 4 12 Power 1 | . . 1 Propulsion 5 | . 3 2 Utility 3 | . . 3 Weapon 7 | . 1 6 Tool/Special . | . . . Average Slot Usage (%) 99 | . 100 99 Engine 14 | . 14 14 Treads 27 | . 28 27 Device 14 | . 14 14 Storage 14 | . 14 14 Energy Gun 20 | . 14 25 Ballistic Gun 7 | . 14 2 Peak Build Rating 9 | 8 8 9 Average Rating 7 | 5 7 8 On Entrance 5 | . 8 8 Avg Prop Armor Cover (%) . | . . . Naked Turns . | . . . Heaviest Build 32 | 14 29 32 Greatest Support 40 | 40 40 40 Greatest Overweight (x) . | . . . Average Overweight (x) . | . . . Largest Inventory Capacity 15 | 8 15 15 Average Capacity 12 | 7 11 15 Most Carried 15 | 8 13 15 Average Carried 10 | 5 9 14 Final Capacity 15 | 8 15 15 Final Carried 15 | 8 13 15 Class Distribution -------------------- 100% | Mutant Dominant Class ---------------- Mutant | -10/Materials Mutant | -10/Subcaves Resources | -11 -10 -10 ----------- Run | Yrd Mat Sub Matter Collected 530 | 291 209 30 Remotely . | . . . Salvage Created 904 | 168 467 269 Parts 74 | 14 38 22 Haulers Intercepted 1 | . 1 . Recyclers Shooed 1 | . 1 . Parts Field Recycled . | . . . Retrieved Matter . | . . . Parts Self-Destructed 8 | . . 8 Prevented . | . . . Parts Restored . | . . . Kills | -11 -10 -10 ------- Run | Yrd Mat Sub Combat Hostiles Destroyed 16 | . 10 6 Guns 15 | . 9 6 Classes Destroyed 8 | 2 5 1 Tunneler 5 | 5 . . Hauler 1 | . 1 . Recycler 3 | 1 2 . Watcher 3 | . 3 . Swarmer 5 | . 5 . Grunt 3 | . 3 . Sentry 1 | . . 1 Subdweller 7 | . 2 5 Best Kill Streak 3 | 1 3 2 Combat Bots Only 2 | . 2 2 Max Kills in Single Turn 2 | 1 2 1 Gunslinging 1 | . 1 . Exploded . | . . . Melee . | . . . Uniques/NPCs Destroyed . | . . . Combat | -11 -10 -10 -------- Run | Yrd Mat Sub Hostile Shots Fired 55 | . 30 25 Missed 12 | . 5 7 Hits 43 | . 25 18 Projectile 43 | . 25 18 AOE 1 | . . 1 Damage Taken 714 | . 291 423 Core 254 | . 92 162 Absorbed by Shields . | . . . Core Remaining (%) 100 | 100 . . Volleys Fired 79 | 21 39 19 Largest 2 | 2 2 2 Hottest 110 | 70 70 110 Shots Fired 158 | 42 78 38 Gun 158 | 42 78 38 Cannon . | . . . Launcher . | . . . Special . | . . . Kinetic 60 | 21 39 . Thermal 98 | 21 39 38 Explosive . | . . . Electromagnetic . | . . . Robot Hit Streak 14 | 5 8 14 Robot Miss Streak 3 | 3 2 1 Penetration Max . | . . . Secondary Targets 2 | . 1 1 Max Gunslinging Chain 1 | . 1 1 Shots Hit Robots 115 | 25 55 35 Core Hits 51 | 9 29 13 Critical Kills . | . . . Critical Parts Destroyed . | . . . Critical Strikes 8 | 3 3 2 Burn 8 | 3 3 2 Melee Attacks . | . . . Impact . | . . . Slashing . | . . . Piercing . | . . . Sneak Attacks . | . . . Combat Hostiles . | . . . Follow-up Attacks . | . . . Damage Inflicted 1381 | 266 568 547 Guns 1381 | 266 568 547 Cannons . | . . . Explosions . | . . . Melee . | . . . Ramming . | . . . Kinetic 350 | 116 234 . Thermal 1031 | 150 334 547 Explosive . | . . . Electromagnetic . | . . . Impact . | . . . Slashing . | . . . Piercing . | . . . Highest Corruption . | . . . Average Corruption . | . . . Corruption Purged . | . . . Corruption Blocked . | . . . Overload Shots . | . . . Overflow Damage . | . . . Projectiles . | . . . Explosions . | . . . Melee . | . . . Knockbacks . | . . . Impact . | . . . Kinetic . | . . . Secondary . | . . . Self-Inflicted Damage . | . . . Shots . | . . . Rammed . | . . . Targets Rammed . | . . . Kicked . | . . . Crushed . | . . . Highest Temperature 104 | 90 104 2 Average Temperature 35 | 33 38 2 Received Heat Transfer 147 | . 54 93 Siege Activations . | . . . Martial Activations . | . . . Shielding Activations . | . . . Robots Disrupted . | . . . Combat Hostiles . | . . . Robots Corrupted . | . . . Combat Hostiles . | . . . Parts Fried . | . . . Impact Corruptions . | . . . Robots Melted 1 | . 1 . Combat Hostiles 1 | . 1 . Parts Melted 10 | 2 3 5 Heat Transferred 3162 | 666 1221 1275 Parts Sabotaged . | . . . Parts Stolen . | . . . Parts Stripped . | . . . Power Chain Reactions . | . . . Alert | -11 -10 -10 ------- Run | Yrd Mat Sub Maximum Alert Level . | . . . Low Security (%) 100 | 100 100 . Level 1 . | . . . Level 2 . | . . . Level 3 . | . . . Level 4 . | . . . Level 5 . | . . . High Security . | . . . Max Security . | . . . Peak Influence 107 | 5 107 . Initial . | . . . Average 25 | . 36 . Influence Increases 368 | 30 318 20 Destroy 0b10 Robot/C 180 | . 160 20 Destroy 0b10 Robot/NC 60 | 30 30 . Destroy Leader 48 | . 48 . Successful Hack 5 | . 5 . Lose Combat Pursuer 75 | . 75 . Influence Decreases 368 | 30 317 21 Entered New Map 1 | . . 1 Time Decay 367 | 30 317 20 Squads Dispatched 1 | . 1 . Investigation . | . . . Extermination . | . . . Reinforcement 1 | . 1 . Assault . | . . . Garrison . | . . . Intercept . | . . . Searches Triggered . | . . . Construction Impeded . | . . . Haulers Reinforced . | . . . Active Scanning Responses . | . . . Cargo Convoy Interrupts . | . . . Stealth | -11 -10 -10 --------- Run | Yrd Mat Sub Distress Signals 5 | . 5 . Communications Jammed . | . . . Distress Signals . | . . . Times Spotted 23 | . 16 7 Peak Tracking Total 4 | . 4 2 Tactical Retreats 5 | . 5 . Traps | -11 -10 -10 ------- Run | Yrd Mat Sub Traps Triggered . | . . . Indirectly . | . . . Trap Hack Attempts . | . . . Triggered . | . . . Disarmed . | . . . Reprogrammed . | . . . Reused . | . . . Traps Extracted . | . . . Installed . | . . . Triggered . | . . . Machines | -11 -10 -10 ---------- Run | Yrd Mat Sub Machines Disabled . | . . . Max in Single Turn . | . . . Machines Repaired . | . . . Machines Dismantled . | . . . Machines Sabotaged . | . . . Overloaded Fab Kills . | . . . Hacking | -11 -10 -10 --------- Run | Yrd Mat Sub Machines Accessed 3 | . 3 . Terminals 3 | . 3 . Fabricators . | . . . Repair Stations . | . . . Recycling Units . | . . . Scanalyzers . | . . . Garrison Access . | . . . Total Hacks 7 | . 7 . Successful 2 | . 2 . Failed 5 | . 5 . Catastrophic . | . . . Database Lockouts . | . . . Manual 3 | . 3 . Terminals 7 | . 7 . Fabricators . | . . . Repair Stations . | . . . Recycling Units . | . . . Scanalyzers . | . . . Garrison Access . | . . . Terminal Hacks 2 | . 2 . Prototype ID Bank 1 | . 1 . Locate Traps 1 | . 1 . Fabricator Hacks . | . . . Repair Station Hacks . | . . . Recycling Unit Hacks . | . . . Scanalyzer . | . . . Garrison Access Hacks . | . . . Unauthorized Hacks . | . . . Terminals . | . . . Fabricators . | . . . Repair Stations . | . . . Recycling Units . | . . . Scanalyzers . | . . . Garrison Access . | . . . Data Cores Recovered . | . . . Used . | . . . Hacking Detections 3 | . 3 . Full Trace Events . | . . . Feedback Events . | . . . Feedback Blocked . | . . . Robot Schematics Acquired . | . . . Robots Built . | . . . Authchips . | . . . Time . | . . . Total Robot Build Rating . | . . . Part Schematics Acquired . | . . . Parts Built . | . . . Authchips . | . . . Time . | . . . Total Part Build Rating . | . . . Part Studies Acquired . | . . . Parts Repaired . | . . . Time . | . . . Parts Recycled . | . . . Recycled Matter . | . . . Retrieved Matter . | . . . Retrieved Components . | . . . Parts Scanalyzed . | . . . Part Schematics Acquired . | . . . Parts Damaged . | . . . Bothacking | -11 -10 -10 ------------ Run | Yrd Mat Sub Used RIF Installer . | . . . Robots Hacked . | . . . Non-combat . | . . . Combat . | . . . Robot Hacks Applied . | . . . Relay Couplers Released . | . . . Fabnet Peak Effective % . | . . . Robots Rewired . | . . . Allies Hacked . | . . . Hacks Repelled . | . . . Allies | -11 -10 -10 -------- Run | Yrd Mat Sub Total Allies . | . . . Largest Group . | . . . Highest-Rated Group . | . . . Highest-Rated Ally . | . . . Total Orders . | . . . Ally Attacks . | . . . Total Damage . | . . . Kills . | . . . Allies Corrupted . | . . . Allies Melted . | . . . Intel | -11 -10 -10 ------- Run | Yrd Mat Sub Active Infowar (turns) 1613 | 23 755 835 Seismic 1613 | 23 755 835 Robot Analysis Total . | . . . Derelict Logs Recovered 1 | . . 1 Drone Launches . | . . . Drone Recoveries . | . . . Exploration | -11 -10 -10 ------------- Run | Yrd Mat Sub Turns Passed 1934 | 344 755 835 Spaces Moved 962 | 154 347 461 Core 4 | 4 . . Treads 958 | 150 347 461 Legs . | . . . Wheels . | . . . Hover . | . . . Flight . | . . . Fastest Speed 50 | 50 160 160 Average Speed 159 | 157 160 160 Slowest Speed 160 | 160 160 160 Overloaded Moves . | . . . Propulsion Burnouts . | . . . Robots Hopped . | . . . Potential Cave-ins . | . . . Cave-ins Triggered . | . . . Exploration Rate (%) 32 | 6 52 38 Regions Visited 2 Branch Regions 1 Pre-discovered Areas . | . . . Known Exits Taken . | . . . Unknown Exits Taken 2 | 1 1 . Scrap Searched 3 | . . 3 Spaces Dug . | . . . Terrain Destroyed . | . . . Melee . | . . . Projectile . | . . . AOE . | . . . Terrain Rammed . | . . . Walls Destroyed . | . . . Machines Disabled . | . . . Actions | -11 -10 -10 --------- Run | Yrd Mat Sub Total 1216 | 215 480 521 Wait 139 | 26 78 35 Move 960 | 153 346 461 Hop . | . . . Pick Up 20 | 8 9 3 Fast Attach 7 | 7 . . Attach 1 | . . 1 Detach . | . . . Swap 4 | . 2 2 Drop 6 | . 6 . Fire 79 | 21 39 19 Melee . | . . . Ram . | . . . Kick . | . . . Crush . | . . . Escape Stasis . | . . . Rewire . | . . . Trap . | . . . Miscellaneous . | . . . Route ------- -11/Scrapyard -10/Materials (discovered 3 exits: [*Mat] / [*Min] / [*Sub]) -10/Subcaves (discovered 1 exit: [*Mat]) History --------- Turn | Location | Event 8 | -11/Scrapyard | Discovered new exit (range 14) 345 | -11/Scrapyard | Entered Materials 346 | -10/Materials | Build established: Mutant 560 | -10/Materials | Discovered new exit (range 8) 682 | -10/Materials | Discovered new exit (range 14) 845 | -10/Materials | Derelicts attacked the area 1086 | -10/Materials | Discovered new exit (range 10) 1100 | -10/Materials | Entered Subcaves 1210 | -10/Subcaves | Ambushed by Subdwellers from Twisted Machinery 1346 | -10/Subcaves | Discovered new exit (range 16) 1516 | -10/Subcaves | Core integrity fell below 50% 1624 | -10/Subcaves | Shifting Twisted Machinery released Battle Cannon 1631 | -10/Subcaves | Shifting Twisted Machinery released Sub. Power Source 1935 | -10/Subcaves | Destroyed by RA-V9P(R) with Subdweller Shrapnel Launcher Last Messages --------------- 01416_ Found 60 Matter. 01417_ Searching scrap... 01417_ Found Humpback. 01417_ Found Flamer. 01417_ Found 30 Matter. 01419_ Searching scrap... 01419_ Found Sub. Beam Cannon. 01419_ Found Sub. Power Source. 01422_ Acquired Sub. Beam Cannon. 01514_ LZ-PT6(R) suffers critical hit (Burn). 01519_ Lgt. Treads destroyed. 01521_ Disposable Heat Sink melted. 01521_ LZ-PT6(R) destroyed. 01524_ Acquired 10 matter. Battle Cannon falls loose from the Twisted Machinery. Sub. Power Source falls loose from the Twisted Machinery. 01637_ Acquired Battle Cannon. 01669_ Disposable Heat Sink melted. 01669_ CV-G81(R) destroyed. 01811_ Y-45 Defender destroyed. Map ----- +----------------------------------------------------+ | ?????????????????????????????????????????????????? | | ?????????????????????????????????????????????????? | | ?????????????????????????????????????????????????? | | ?????????????????????????????????????????????????? | | ?????????????????????????????????????????????????? | | ?????????????????????????????????????????????????? | | ?????????????????????????????????????????????????? | | ?????????????????????????????????????????????????? | | ?????????????????????????????????????????????????? | | ?????????????????????????????????????????????????? | | ?????????????????????????????????????????????????? | | ?????????????????????????????????????????????????? | | ?????????????????????????????????????????????????? | | ?????????????????????????????????????????????????? | | ?????????????????????????????????????????????????? | | ?????????????????????????????????????????????????? | | ???????????????????????????????#?????????????????? | | ?????????????????????????????? #?????????????????? | | ?????????????????????????????? ??????????????????? | | ???????????????????????????? "##?????????????????? | | ???????????????????????????# #?????????????????? | | ???????????????????????????# R#??????????????????? | | ??????????????????????????## ##?????????????????? | | ?????????????????????????## #?????????????????? | | ????????????????#######?## #?????????????????? | | ????????????????# ###@ #??????????????????? | | ?????????????????# # ###????????????????? | | ????????????????## #????????????????? | | ????????????????# # ???????????? | | ??????????????### ### # # ### ??????????? | | ??????????????# #### ######????????????? | | ??????????????# ### ##???????????? | | ??????????????## #?# ????????????? | | ???????????????# #?# ????????????? | | ???????????????## ##??# ## #????????????? | | ????????????????# #???# ### ##???????????? | | ????????????????# #???# ## #???????????? | | ???????????????## #???#### # ###??????????? | | ???????????????# ##????# #### ##?????????? | | ?????????????#### ###?## ###??# ##????????? | | ?????????????# # # ### #????# % ### # #? | | ???????????### #????# %& #? | | ???????????# #???## ! #? | | ???????????##### ### ##### ## #? | | ??????????????# # ### ### ###???# #?? | | ??????????????# # ###??# #??????????? | | ??????????????## # #?????##??????????? | | ???????????????#### ######????#####???? | | ??????????????????# ## ##??## ##??? | | ?????????????????# # ##?# ###? | +----------------------------------------------------+ Best States ------------- Heat Dissipation 25 Energy Generation 10 Energy Capacity 250 Matter Stores 300 Matter Capacity 300 Sight Range 16 Terrain Scan Density 10 Evasion (%) 40 Recoil Reduction 2 Item Schematics ----------------- None Robot Schematics ------------------ None Fabricated ------------ Nothing Repaired ---------- Nothing Studied --------- None Alien Tech Used ----------------- None Achievements -------------- None Challenges ------------ None Game ------ Seed LayeredDamperSabre Manual? 0 Play Time 00:13:19 Cumulative 610.9 hours Start 2026.04.05 @ 13:36:00 End 2026.04.05 @ 13:48:44 Sessions 1 Manual Loads 0 Difficulty Rogue Special Mode None Game No. 124 Rogue 116 Adventurer 1 Explorer 7 Win Type - Total 51 Types 17/4/15/1/1/1/8/1/1/2 Lore% 78 Gallery% 81 Achievement% 59 Wizard Run 0 Options --------- Layout 0 ASCII 0 Keyboard 0 Movement Mouse Keybinds 0 Fullscreen 1 Font 24/Smallcaps Map View 76x50 Zoom Use 0% Tactical HUD 1 Map Filters NONE Filters NONE Steam 1 RUN: b40bc497-f44d-4f76-9a26-2ccb0be5f224